bitfinex/quotes_BTCUSD_20250316
["timestamp","ask_amount","ask_price","bid_price","bid_amount"]
[1742166906925,1.01263012,82442.0,82441.0,4e-07]
[1742166907075,1.01463012,82442.0,82441.0,4e-07]
[1742166907303,1.01963012,82442.0,82441.0,4e-07]
[1742166907510,1.03864809,82442.0,82441.0,4e-07]
[1742166907695,1.03881719,82442.0,82441.0,4e-07]
[1742166908184,1.04770984,82442.0,82441.0,4e-07]
[1742166908385,0.99270984,82442.0,82441.0,4e-07]
[1742166908621,1.02369187,82442.0,82441.0,4e-07]
[1742166908826,0.97169187,82442.0,82441.0,4e-07]
[1742166909041,1.02169187,82442.0,82441.0,4e-07]
[1742166909243,0.97469187,82442.0,82441.0,4e-07]
[1742166909649,0.97269187,82442.0,82441.0,4e-07]
[1742166909861,0.97569187,82442.0,82441.0,4e-07]
[1742166910058,0.012134,82408.0,82399.0,0.0833]
[1742166910266,0.012135,82403.0,82399.0,0.0833]
[1742166910459,0.194165,82405.0,82399.0,0.0833]
[1742166910665,0.194169,82403.0,82399.0,0.0833]
[1742166910937,0.194169,82403.0,82400.0,0.11957503]
[1742166911135,0.194167,82403.0,82400.0,0.11957503]
[1742166911339,0.012135,82401.0,82400.0,0.00041331]
[1742166911884,0.31365204,82401.0,82400.0,0.00041331]
[1742166912086,0.312135,82401.0,82400.0,0.00041331]
[1742166913124,0.33115858,82401.0,82400.0,0.00041331]
[1742166915467,0.74675858,82401.0,82400.0,0.00041331]
[1742166916520,0.727735,82401.0,82400.0,0.00041331]
[1742166917173,0.7156,82401.0,82400.0,0.00041331]
[1742166917405,0.921907,82401.0,82400.0,0.00041331]
[1742166919587,0.921907,82401.0,82400.0,0.00075151]
[1742166919810,0.94093103,82401.0,82400.0,0.00075151]
[1742166920904,0.921907,82401.0,82400.0,0.00075151]
[1742166925456,0.94093071,82401.0,82400.0,0.00075151]
[1742166927321,0.921907,82401.0,82400.0,0.00075151]
[1742166927765,0.921907,82401.0,82400.0,0.00319151]
[1742166931336,0.4156,82401.0,82400.0,0.01532651]
[1742166931546,0.4156,82401.0,82400.0,0.13652206]
[1742166931740,0.4156,82401.0,82400.0,0.18392206]
[1742166931945,0.194112,82427.0,82421.0,0.012132]
[1742166932181,0.012132,82424.0,82419.0,0.081]
[1742166932411,0.3,82421.0,82420.0,0.0287267]
[1742166932613,0.3,82421.0,82419.0,0.275128]
[1742166932789,0.0001691,82441.0,82419.0,0.275128]
[1742166932790,0.4156,82437.0,82430.0,0.012131]
[1742166932992,0.206224,82435.0,82430.0,0.012131]
[1742166933143,0.4156,82437.0,82433.0,0.194096]
[1742166933350,0.206212,82439.0,82434.0,0.2292709]
[1742166933545,0.206162,82439.0,82434.0,0.2292709]
[1742166933757,0.3,82438.0,82434.0,0.2292709]
[1742166933982,0.0001691,82441.0,82440.0,0.20621]
[1742166934138,0.00029273,82441.0,82440.0,0.07126909]
[1742166934352,0.0193069,82441.0,82440.0,0.07126909]
[1742166935026,0.0314359,82441.0,82440.0,0.06926909]
[1742166935804,0.0314359,82441.0,82436.0,0.01213]
[1742166935805,0.206219,82436.0,82435.0,0.081]
[1742166936001,0.206219,82436.0,82425.0,0.13864]
[1742166936002,0.01213,82434.0,82428.0,0.194106]
[1742166936185,0.01213,82434.0,82429.0,0.012131]
[1742166936393,0.01213,82434.0,82429.0,0.206235]
[1742166936595,0.01213,82434.0,82430.0,0.0656375]
[1742166936795,0.206226,82434.0,82430.0,0.0656375]
[1742166937636,0.194094,82435.0,82430.0,0.2718715]
[1742166937873,0.194097,82433.0,82430.0,0.0656375]
[1742166938193,0.194104,82430.0,82428.0,0.002]
[1742166938393,0.312131,82429.0,82428.0,0.002]
[1742166938903,0.312131,82429.0,82412.0,0.081]
[1742166938904,0.012134,82413.0,82412.0,0.081]
[1742166939104,0.012134,82410.0,82409.0,0.0474]
[1742166939281,0.194142,82414.0,82406.0,0.081]
[1742166939454,0.194142,82414.0,82407.0,0.0505734]
[1742166939657,0.194142,82414.0,82409.0,0.012134]
[1742166939857,0.206272,82415.0,82410.0,0.012134]
[1742166940077,0.206276,82414.0,82409.0,0.206285]
[1742166940289,0.01225656,82415.0,82410.0,0.24977694]
[1742166940482,0.00012356,82415.0,82412.0,0.012134]
[1742166941561,0.01225656,82415.0,82410.0,0.05862894]
[1742166941757,0.012133,82414.0,82410.0,0.05862894]
[1742166942091,0.206276,82414.0,82410.0,0.05862894]
[1742166942238,0.01225656,82415.0,82411.0,0.08120723]
[1742166942454,0.206278,82413.0,82411.0,0.08120723]
[1742166943239,0.01225656,82415.0,82412.0,0.003]
[1742166943433,0.00012356,82415.0,82411.0,0.28748723]
[1742166943695,0.00012356,82415.0,82412.0,0.05990392]
[1742166944555,0.00012356,82415.0,82412.0,0.07203792]
[1742166944928,0.00012356,82415.0,82413.0,0.012134]
[1742166945060,0.00012356,82415.0,82413.0,0.206277]
[1742166945259,0.00012356,82415.0,82414.0,0.012133]
[1742166945466,0.00012356,82415.0,82414.0,0.16353409]
[1742166945670,0.00012356,82415.0,82414.0,0.21093409]
[1742166945895,0.00012356,82415.0,82414.0,1.71214723]
[1742166946042,0.00012356,82415.0,82414.0,1.71093409]
[1742166946500,0.00012356,82415.0,82414.0,1.71393409]
[1742166946943,0.00112356,82415.0,82414.0,1.71293409]
[1742166947141,0.00100056,82415.0,82414.0,1.71593409]
[1742166947345,0.0001692,82424.0,82423.0,0.092432]
[1742166947544,0.0001692,82424.0,82423.0,0.36664732]
[1742166947744,2e-07,82424.0,82423.0,0.37897515]
[1742166947953,2e-07,82424.0,82423.0,0.37797515]
[1742166948379,0.0001691,82441.0,82440.0,0.33431]
[1742166948709,0.0001691,82441.0,82440.0,0.54041015]
[1742166949211,0.0001691,82441.0,82440.0,0.5258693]
[1742166949929,0.00029284,82441.0,82440.0,0.5258693]
[1742166950346,0.00029284,82441.0,82440.0,0.5318693]
[1742166950661,0.00029284,82441.0,82440.0,0.5378693]
[1742166953076,0.00029284,82441.0,82440.0,0.54720819]
[1742166953496,0.00029284,82441.0,82440.0,0.5378693]
[1742166953696,0.00029284,82441.0,82440.0,0.3870193]
[1742166953862,0.00029284,82441.0,82440.0,0.012]
[1742166954265,0.012129,82447.0,82441.0,0.194078]
[1742166954512,0.312128,82453.0,82442.0,0.194073]
[1742166954668,0.206182,82452.0,82442.0,0.206202]
[1742166955255,0.3,82453.0,82452.0,0.012128]
[1742166955455,0.3,82458.0,82452.0,0.20618]
[1742166955687,0.3,82456.0,82453.0,0.0230436]
[1742166955908,0.3,82456.0,82455.0,0.206172]
[1742166956431,0.0190099,82457.0,82456.0,0.012127]
[1742166956777,0.0001686,82472.0,82471.0,0.206132]
[1742166958172,0.00029232,82472.0,82471.0,0.287532]
[1742166958352,0.00029232,82472.0,82471.0,0.3539636]
[1742166959129,0.00029232,82472.0,82471.0,0.1478316]
[1742166959334,0.00029232,82472.0,82471.0,0.0684316]
[1742166959880,0.01241732,82472.0,82471.0,0.002]
[1742166960083,0.01393318,82472.0,82471.0,0.006]
[1742166960283,0.01241732,82472.0,82471.0,0.004]
[1742166960486,0.00029232,82472.0,82470.0,0.012125]
[1742166960711,0.00029232,82472.0,82471.0,0.0379511]
[1742166960863,0.00029232,82472.0,82471.0,0.0359511]
[1742166961405,0.00029232,82472.0,82471.0,0.1110511]
[1742166962591,0.00029232,82472.0,82471.0,0.1122635]
[1742166962794,3.2e-07,82472.0,82471.0,0.1122635]
[1742166962996,3.2e-07,82472.0,82471.0,0.58440435]
[1742166963197,0.0001686,82496.0,82495.0,0.329072]
[1742166963399,0.0001686,82496.0,82495.0,0.468032]
[1742166964035,0.0001686,82496.0,82487.0,0.089223]
[1742166964036,0.012122,82492.0,82487.0,0.089223]
[1742166964275,0.193955,82493.0,82487.0,0.28319]
[1742166964411,0.012125,82473.0,82471.0,0.0278261]
[1742166964600,0.012124,82479.0,82473.0,0.206125]
[1742166964802,0.193988,82480.0,82475.0,0.012124]
[1742166965001,0.012124,82481.0,82475.0,0.012124]
[1742166965002,0.012124,82481.0,82476.0,0.012124]
[1742166965398,0.01900361,82480.0,82476.0,0.012124]
[1742166965606,0.01900361,82480.0,82478.0,0.012124]
[1742166965818,0.01900361,82480.0,82479.0,0.012124]
[1742166966312,0.0001692,82507.0,82495.0,0.206072]
[1742166966512,0.0001692,82507.0,82495.0,0.3908946]
[1742166966513,0.01212,82506.0,82495.0,0.3908946]
[1742166966720,0.0002536,82496.0,82495.0,0.3908946]
[1742166967394,0.0002536,82496.0,82495.0,0.5300546]
[1742166967926,0.0002536,82496.0,82495.0,0.3958946]
[1742166969479,0.0002536,82496.0,82495.0,0.4008946]
[1742166972269,0.0001692,82507.0,82506.0,0.01212]
[1742166972471,0.0001692,82507.0,82506.0,0.4239568]
[1742166972671,0.0001692,82507.0,82506.0,0.46756478]
[1742166973469,0.0001692,82507.0,82506.0,0.47356478]
[1742166973679,2e-07,82507.0,82506.0,0.53400563]
[1742166973883,2e-07,82509.0,82508.0,0.22058085]
[1742166974080,2e-07,82509.0,82508.0,0.29768085]
[1742166974310,2e-07,82509.0,82508.0,2.32895588]
[1742166974512,2e-07,82509.0,82508.0,3.09883588]
[1742166974917,2e-07,82509.0,82508.0,3.08429503]
[1742166975120,2e-07,82509.0,82508.0,3.22393503]
[1742166975524,2e-07,82509.0,82508.0,3.58437588]
[1742166975741,4e-07,82521.0,82520.0,0.20601]
[1742166975924,0.00012408,82521.0,82520.0,0.35488167]
[1742166976059,0.00012408,82521.0,82520.0,0.35367015]
[1742166976255,0.00012408,82521.0,82520.0,0.414111]
[1742166976601,2e-07,82525.0,82524.0,0.40875785]
[1742166976803,2e-07,82525.0,82524.0,0.51158045]
[1742166977016,2e-07,82525.0,82524.0,0.65154045]
[1742166978673,2e-07,82525.0,82524.0,0.3429996]
[1742166979905,2e-07,82525.0,82524.0,0.3489996]
[1742166980425,2e-07,82525.0,82524.0,0.3429996]
[1742166980840,0.01181415,82542.0,82535.0,0.012116]
[1742166981059,0.1939792,82555.0,82548.0,0.193826]
[1742166981261,0.0001692,82555.0,82548.0,0.20594]
[1742166981499,0.00121218,82549.0,82547.0,0.012114]
[1742166981684,0.00121218,82549.0,82548.0,0.20594]
[1742166982001,0.00121218,82549.0,82548.0,0.2701466]
[1742166983237,0.00121218,82549.0,82548.0,0.2721466]
[1742166983884,0.00121218,82549.0,82548.0,0.2741466]
[1742166984160,0.00121218,82549.0,82548.0,0.3181466]
[1742166984384,0.00121218,82549.0,82548.0,0.3201466]
[1742166984581,0.00121218,82549.0,82548.0,1.86310212]
[1742166985217,0.00121218,82549.0,82548.0,1.85910212]
[1742166985389,0.00121218,82549.0,82548.0,1.90173021]
[1742166985590,0.00121218,82549.0,82548.0,1.91827106]
[1742166985846,0.00121218,82549.0,82548.0,1.8221466]
[1742166985975,0.00121218,82549.0,82548.0,1.8281466]
[1742166986186,0.00121218,82549.0,82548.0,1.8221466]
[1742166986585,0.00121218,82549.0,82548.0,1.8281466]
[1742166987210,0.00121218,82549.0,82548.0,0.3281466]
[1742166987758,0.00121218,82549.0,82548.0,0.3221466]
[1742166987951,0.00121218,82549.0,82548.0,0.3281466]
[1742166989127,0.00121218,82549.0,82548.0,0.2821466]
[1742166989615,0.00121218,82549.0,82548.0,0.4222266]
[1742166990240,0.00121218,82549.0,82548.0,0.4162266]
[1742166991058,0.00138118,82549.0,82548.0,0.4222266]
[1742166991435,0.00138118,82549.0,82548.0,0.4162266]
[1742166992088,0.00138118,82549.0,82548.0,0.4222266]
[1742166992264,0.00138118,82549.0,82548.0,1.9102266]
[1742166992746,0.00138118,82549.0,82548.0,1.7761466]
[1742166992954,1.8e-07,82549.0,82548.0,1.93072745]
[1742166993175,4.8e-07,82564.0,82563.0,0.205902]
[1742166993373,0.0001691,82579.0,82572.0,0.20588]
[1742166993789,0.0001691,82579.0,82572.0,1.70588]
[1742166993996,0.00020365,82573.0,82572.0,1.79706555]
[1742166994809,0.00020365,82573.0,82572.0,1.80306555]
[1742166995018,0.00020365,82573.0,82572.0,0.10929555]
[1742166995218,0.00020365,82573.0,82572.0,0.01211]
[1742166995650,0.00020365,82573.0,82572.0,0.006]
[1742166995819,0.00020365,82573.0,82572.0,0.01811]
[1742166996460,0.00020365,82573.0,82572.0,0.02311]
[1742166997633,0.00020365,82573.0,82572.0,0.01711]
[1742166997846,0.00020365,82573.0,82572.0,0.0805865]
[1742166998035,0.00020365,82573.0,82572.0,0.0755865]
[1742166998240,0.00020365,82573.0,82572.0,0.0805865]
[1742166998635,0.00020365,82573.0,82572.0,0.1611865]
[1742166998801,0.00020365,82573.0,82572.0,0.16739729]
[1742166999226,0.00020365,82573.0,82572.0,0.16239729]
[1742166999503,0.00020365,82573.0,82572.0,0.16839729]
[1742166999876,0.00020365,82573.0,82572.0,0.1621865]
[1742167000487,0.00020365,82573.0,82572.0,0.0815865]
[1742167001002,0.00020365,82573.0,82572.0,0.0755865]
[1742167001228,0.00020365,82573.0,82572.0,0.0815865]
[1742167001377,0.00020365,82573.0,82572.0,0.0875865]
[1742167001581,0.00020365,82573.0,82572.0,0.0815865]
[1742167001849,0.00020365,82573.0,82572.0,0.2156665]
[1742167002001,0.00020365,82573.0,82572.0,0.2206665]
[1742167002576,0.00020365,82573.0,82572.0,0.2266665]
[1742167002748,0.00020365,82573.0,82572.0,0.0744765]
[1742167003594,0.01231365,82573.0,82572.0,0.0744765]
[1742167003722,0.01231365,82573.0,82572.0,0.011]
[1742167003924,0.01231365,82573.0,82572.0,0.005]
[1742167004130,0.01231365,82573.0,82572.0,0.01]
[1742167004359,0.01248255,82573.0,82572.0,0.005]
[1742167004553,0.01399642,82573.0,82572.0,0.005]
[1742167004752,0.01399642,82573.0,82558.0,0.193802]
[1742167004753,0.205901,82564.0,82558.0,0.205914]
[1742167005031,0.30037255,82573.0,82568.0,0.012111]
[1742167005230,0.00037255,82573.0,82572.0,0.20588]
[1742167005472,0.00037255,82573.0,82572.0,0.005]
[1742167005676,0.00037255,82573.0,82572.0,0.0622654]
[1742167005677,0.01248255,82573.0,82572.0,0.0622654]
[1742167005815,0.31248255,82573.0,82572.0,0.003]
[1742167007845,0.193798,82560.0,82558.0,0.14004]
[1742167008265,0.193798,82560.0,82547.0,0.193826]
[1742167008266,0.193816,82553.0,82547.0,0.193826]
[1742167008465,0.012113,82554.0,82549.0,0.04001128]
[1742167008466,0.012113,82551.0,82549.0,0.04001128]
[1742167008679,0.193821,82550.0,82549.0,0.04001128]
[1742167008884,0.012113,82553.0,82546.0,0.012114]
[1742167009055,0.205926,82554.0,82548.0,0.2062758]
[1742167009272,0.193817,82552.0,82548.0,0.0003378]
[1742167009404,0.20593,82552.0,82548.0,0.0003378]
[1742167009603,0.193822,82550.0,82548.0,0.0003378]
[1742167009800,0.205935,82550.0,82549.0,0.04601178]
[1742167010004,0.012113,82551.0,82549.0,0.04601178]
[1742167010417,0.205934,82550.0,82549.0,0.04601178]
[1742167010621,0.205934,82550.0,82549.0,0.05201178]
[1742167011258,0.193821,82550.0,82548.0,0.0003378]
[1742167011587,0.193821,82550.0,82549.0,0.006]
[1742167011914,0.21280859,82550.0,82548.0,0.0003378]
[1742167012116,0.22492159,82550.0,82549.0,0.004]
[1742167012337,0.01898759,82550.0,82549.0,0.005]
[1742167012690,0.01898759,82550.0,82549.0,0.04066508]
[1742167013497,0.01898759,82550.0,82549.0,0.03566508]
[1742167014078,0.01898759,82550.0,82549.0,1.53566508]
[1742167014342,0.01898759,82550.0,82549.0,1.53966508]
[1742167014537,0.01898759,82550.0,82549.0,1.53566508]
[1742167014743,0.01898759,82550.0,82549.0,1.54066508]
[1742167014987,0.01898759,82550.0,82549.0,1.54566508]
[1742167016391,0.01898759,82550.0,82549.0,1.54600288]
[1742167016601,0.01898759,82550.0,82549.0,1.53388888]
[1742167016796,0.01898759,82550.0,82549.0,0.03388888]
[1742167017181,0.01898759,82550.0,82549.0,0.04600288]
[1742167017719,0.193818,82552.0,82549.0,0.03388888]
[1742167017924,0.3,82553.0,82550.0,0.04461137]
[1742167018123,0.3,82553.0,82550.0,0.25054337]
[1742167018329,0.3,82553.0,82550.0,0.04461137]
[1742167018503,0.205934,82551.0,82549.0,0.0053378]
[1742167018685,0.205934,82551.0,82549.0,0.0003378]
[1742167018686,0.358313,82550.0,82549.0,0.0003378]
[1742167018906,0.358313,82550.0,82549.0,0.0053378]
[1742167019251,0.358313,82550.0,82549.0,0.0093378]
[1742167020346,0.358313,82550.0,82549.0,0.0043378]
[1742167020527,0.37017274,82550.0,82549.0,0.0043378]
[1742167020873,0.012113,82555.0,82549.0,0.0043378]
[1742167020874,0.012112,82559.0,82554.0,0.193812]
[1742167021005,0.012112,82561.0,82555.0,0.04090838]
[1742167021206,0.193798,82560.0,82555.0,0.04090838]
[1742167021433,0.205908,82562.0,82556.0,0.06465834]
[1742167021631,0.31898698,82560.0,82556.0,0.07677034]
[1742167021887,0.012112,82559.0,82556.0,0.06465834]
[1742167022261,0.01898698,82560.0,82558.0,0.1938]
[1742167022461,0.01898698,82560.0,82559.0,0.012112]
[1742167022812,0.01898698,82560.0,82559.0,0.08686637]
[1742167023978,0.09528698,82560.0,82517.0,0.0772]
[1742167024372,0.312113,82550.0,82536.0,0.012115]
[1742167024546,0.312113,82550.0,82535.0,0.012116]
[1742167024718,0.312113,82550.0,82531.0,0.205981]
[1742167025044,0.312113,82550.0,82524.0,0.012455]
[1742167025261,0.312113,82550.0,82529.0,0.205985]
[1742167025262,0.33110242,82550.0,82529.0,0.205985]
[1742167025634,0.33110242,82550.0,82529.0,0.012116]
[1742167025825,0.33110242,82550.0,82524.0,0.000338]
[1742167026078,0.33110242,82550.0,82526.0,0.193876]
[1742167026228,0.33110242,82550.0,82528.0,0.193873]
[1742167026442,0.33110242,82550.0,82529.0,0.193869]
[1742167027421,0.76224327,82550.0,82526.0,0.193876]
[1742167027631,0.76224327,82550.0,82525.0,0.012117]
[1742167027858,0.76224327,82550.0,82537.0,0.012115]
[1742167027859,0.728713,82550.0,82537.0,0.012115]
[1742167028058,0.728713,82550.0,82538.0,0.193848]
[1742167028259,0.728713,82550.0,82536.0,0.205969]
[1742167029047,0.727713,82550.0,82536.0,0.205969]
[1742167029355,0.727713,82550.0,82537.0,0.205965]
[1742167029567,0.727713,82550.0,82537.0,0.012115]
[1742167029767,0.727713,82550.0,82536.0,0.205969]
[1742167030179,0.727713,82550.0,82537.0,0.012115]
[1742167030997,0.727713,82550.0,82538.0,0.193848]
[1742167031204,0.74670239,82550.0,82538.0,0.193848]
[1742167032027,0.74670239,82550.0,82536.0,0.205969]
[1742167032382,0.74670239,82550.0,82536.0,1.705969]
[1742167032751,0.74670239,82550.0,82537.0,0.012115]
[1742167032950,0.74670239,82550.0,82539.0,0.012115]
[1742167033367,0.74670239,82550.0,82538.0,0.193848]
[1742167035008,0.74670239,82550.0,82537.0,0.012115]
[1742167036610,0.74670239,82550.0,82533.0,0.193861]
[1742167036749,0.74670239,82550.0,82535.0,0.193855]
[1742167036993,0.74670239,82550.0,82536.0,0.012115]
[1742167037655,0.727713,82550.0,82536.0,0.012115]
[1742167038063,0.727713,82550.0,82537.0,0.193852]
[1742167038302,0.727713,82550.0,82537.0,0.205967]
[1742167038502,0.727713,82550.0,82536.0,0.012115]
[1742167038682,0.727713,82550.0,82536.0,0.205968]
[1742167039315,0.727713,82550.0,82538.0,0.012115]
[1742167039504,0.727713,82550.0,82539.0,0.193846]
[1742167040986,0.74670216,82550.0,82539.0,0.193846]
[1742167041527,0.74670216,82550.0,82535.0,0.277056]
[1742167041725,0.74670216,82550.0,82535.0,0.289172]
[1742167041980,0.74670216,82550.0,82540.0,0.193843]
[1742167042148,0.727713,82550.0,82539.0,0.205961]
[1742167042586,0.1939579,82564.0,82551.0,0.012113]
[1742167042892,0.2060709,82564.0,82557.0,0.205915]
[1742167043023,0.205907,82562.0,82555.0,0.012113]
[1742167043208,0.493805,82557.0,82556.0,0.0350139]
[1742167043408,0.312112,82556.0,82545.0,0.205946]
[1742167043610,0.505919,82556.0,82549.0,0.0124518]
[1742167044039,0.193812,82555.0,82549.0,0.2062738]
[1742167044500,0.205925,82555.0,82549.0,0.2062738]
[1742167044665,0.205925,82555.0,82550.0,0.07016956]
[1742167044985,0.505919,82556.0,82551.0,0.193817]
[1742167045242,0.01898746,82554.0,82553.0,0.193814]
[1742167045465,0.01898746,82554.0,82553.0,0.205927]
[1742167045596,0.01898746,82554.0,82551.0,0.205931]
[1742167045795,0.01898746,82554.0,82552.0,0.24450872]
[1742167046417,0.01898746,82554.0,82552.0,0.05069372]
[1742167046613,0.012113,82553.0,82552.0,0.05069372]
[1742167046757,0.21280046,82554.0,82549.0,0.2062738]
[1742167046964,0.21280046,82554.0,82549.0,0.2072738]
[1742167047546,0.01898746,82554.0,82549.0,0.0124518]
[1742167047754,0.01898746,82554.0,82552.0,0.001]
[1742167048106,0.01898746,82554.0,82553.0,0.001]
[1742167048318,0.01898746,82554.0,82552.0,0.001]
[1742167048459,0.01898746,82554.0,82553.0,0.02439476]
[1742167048657,0.193777,82569.0,82553.0,0.02439476]
[1742167048658,0.00037255,82573.0,82563.0,0.012111]
[1742167049053,0.01211,82570.0,82563.0,0.286602]
[1742167049227,0.012111,82569.0,82563.0,0.286602]
[1742167049706,0.1939589,82564.0,82557.0,0.286615]
[1742167049944,0.205911,82560.0,82554.0,0.205925]
[1742167050152,0.193807,82557.0,82555.0,0.06578886]
[1742167050357,0.012112,82556.0,82555.0,0.06578886]
[1742167050527,0.012112,82556.0,82553.0,0.02439476]
[1742167050528,0.012113,82554.0,82553.0,0.02439476]
[1742167051035,0.205934,82550.0,82549.0,0.0003378]
[1742167051487,0.51930575,82550.0,82549.0,0.0003378]
[1742167051712,0.51779137,82550.0,82549.0,0.0003378]
[1742167052126,0.53678042,82550.0,82549.0,0.0003378]
[1742167052782,1.01292127,82550.0,82549.0,0.0003378]
[1742167053415,0.45795485,82549.0,82548.0,6e-07]
[1742167055073,0.82655485,82549.0,82548.0,6e-07]
[1742167055283,0.206032,82511.0,82510.0,0.10836829]
[1742167055503,0.506032,82511.0,82510.0,0.10836829]
[1742167055711,0.506032,82511.0,82510.0,0.11920512]
[1742167056131,0.506032,82511.0,82510.0,0.01083683]
[1742167056132,0.51290954,82511.0,82510.0,0.01083683]
[1742167056328,0.52502854,82511.0,82510.0,0.01083683]
[1742167056770,0.52502854,82511.0,82510.0,0.01124901]
[1742167057377,0.31899654,82511.0,82510.0,0.01124901]
[1742167057698,0.31899654,82511.0,82510.0,0.02124901]
[1742167057922,0.01899654,82511.0,82510.0,0.03336801]
[1742167058119,0.02470199,82528.0,82520.0,0.012118]
[1742167058120,0.3,82521.0,82520.0,0.012118]
[1742167059498,0.3,82525.0,82520.0,0.206008]
[1742167059896,0.3,82525.0,82523.0,0.193885]
[1742167060104,0.3,82525.0,82522.0,0.012117]
[1742167060304,0.3,82525.0,82523.0,0.0424135]
[1742167060678,0.493882,82524.0,82523.0,0.0424135]
[1742167060880,0.012118,82517.0,82510.0,0.35058101]
[1742167061085,0.312118,82520.0,82513.0,0.012119]
[1742167061086,0.012118,82518.0,82513.0,0.012119]
[1742167061290,0.193906,82514.0,82510.0,0.29838101]
[1742167061459,0.206029,82513.0,82510.0,0.01124901]
[1742167062123,0.012119,82513.0,82510.0,0.01124901]
[1742167062452,0.3,82517.0,82513.0,0.196908]
[1742167062669,0.506019,82517.0,82513.0,0.003]
[1742167062843,0.012119,82514.0,82513.0,0.003]
[1742167063249,0.012119,82514.0,82513.0,0.02993357]
[1742167063404,0.012119,82514.0,82513.0,0.003]
[1742167064212,0.31363403,82514.0,82513.0,0.003]
[1742167064400,0.506032,82511.0,82510.0,0.00041218]
[1742167064610,0.506032,82511.0,82510.0,0.00441218]
[1742167064814,0.506032,82511.0,82510.0,0.00041218]
[1742167065333,0.5250291,82511.0,82510.0,0.00041218]
[1742167065533,0.3189971,82511.0,82510.0,0.01253118]
[1742167065727,0.0189971,82511.0,82510.0,0.2305153]
[1742167065935,0.0189971,82511.0,82510.0,0.49970722]
[1742167066139,0.036451,82530.0,82529.0,0.287087]
[1742167066547,0.0121241,82536.0,82531.0,0.012116]
[1742167066744,0.3,82535.0,82531.0,0.012116]
[1742167066950,0.20597,82536.0,82532.0,0.0517309]
[1742167067170,0.3,82535.0,82532.0,0.0517309]
[1742167067593,0.3,82535.0,82534.0,0.012116]
[1742167067808,0.3,82535.0,82534.0,0.205975]
[1742167068378,0.3,82538.0,82534.0,0.205975]
[1742167068573,0.3,82538.0,82535.0,0.26814299]
[1742167068911,0.3,82538.0,82537.0,0.012115]
[1742167069110,0.3,82538.0,82535.0,0.26814299]
[1742167069572,0.01899137,82538.0,82537.0,0.205967]
[1742167069786,0.01899137,82538.0,82537.0,0.28036069]
[1742167070533,0.3,82545.0,82539.0,0.205962]
[1742167070745,0.493835,82545.0,82539.0,0.205962]
[1742167071061,0.3,82543.0,82539.0,0.205962]
[1742167071258,0.012115,82540.0,82537.0,0.07839369]
[1742167071458,0.3,82539.0,82538.0,0.05993159]
[1742167071677,0.3,82539.0,82537.0,0.002]
[1742167072283,0.3,82539.0,82535.0,0.20638318]
[1742167072907,0.012115,82536.0,82535.0,0.00041218]
[1742167074359,0.012115,82536.0,82535.0,0.00141218]
[1742167075251,0.0311075,82536.0,82535.0,0.00141218]
[1742167076805,0.7467075,82536.0,82535.0,0.00141218]
[1742167077434,0.727715,82536.0,82535.0,0.00141218]
[1742167079272,0.7278841,82536.0,82535.0,0.00141218]
[1742167079974,0.74242495,82536.0,82535.0,1.8e-07]
[1742167080466,0.79742495,82536.0,82535.0,1.8e-07]
[1742167080705,0.505997,82525.0,82524.0,0.0003382]
[1742167080968,0.93613785,82525.0,82524.0,2e-07]
[1742167081198,1.03153785,82525.0,82524.0,2e-07]
[1742167081438,1.03153785,82525.0,82513.0,0.0003382]
[1742167081439,0.506025,82514.0,82513.0,4e-07]
[1742167081667,0.73596585,82514.0,82513.0,4e-07]
[1742167081943,1.15156585,82514.0,82513.0,4e-07]
[1742167082176,1.20156585,82514.0,82513.0,4e-07]
[1742167082608,1.20656585,82514.0,82513.0,4e-07]
[1742167083500,1.20956585,82514.0,82513.0,4e-07]
[1742167084623,1.23156734,82514.0,82513.0,4e-07]
[1742167085140,1.25642942,82514.0,82513.0,4e-07]
[1742167086678,1.26568527,82514.0,82513.0,4e-07]
[1742167086960,0.99528527,82514.0,82513.0,4e-07]
[1742167087104,1.13508527,82514.0,82513.0,4e-07]
[1742167087317,1.11608378,82514.0,82513.0,4e-07]
[1742167087759,1.16608378,82514.0,82513.0,4e-07]
[1742167087918,1.11608378,82514.0,82513.0,4e-07]
[1742167090642,1.13508464,82514.0,82513.0,4e-07]
[1742167091529,1.13225384,82514.0,82513.0,4e-07]
[1742167091707,1.11325298,82514.0,82513.0,4e-07]
[1742167092040,1.11625298,82514.0,82513.0,4e-07]
[1742167092595,1.11601298,82514.0,82513.0,4e-07]
[1742167093209,1.11301298,82514.0,82513.0,4e-07]
[1742167093400,1.11501298,82514.0,82513.0,4e-07]
[1742167094766,1.13401423,82514.0,82513.0,4e-07]
[1742167096288,1.13397423,82514.0,82513.0,4e-07]
[1742167096492,1.12471838,82514.0,82513.0,4e-07]
[1742167096894,0.97065753,82514.0,82513.0,4e-07]
[1742167097251,0.96865753,82514.0,82513.0,4e-07]
[1742167097492,0.97065753,82514.0,82513.0,4e-07]
[1742167097893,0.94965628,82514.0,82513.0,4e-07]
[1742167098100,0.95065628,82514.0,82513.0,4e-07]
[1742167098304,0.96219713,82514.0,82513.0,4e-07]
[1742167098513,0.96519713,82514.0,82513.0,4e-07]
[1742167099020,0.96219713,82514.0,82513.0,4e-07]
[1742167099403,0.96319713,82514.0,82513.0,4e-07]
[1742167099935,0.96119713,82514.0,82513.0,4e-07]
[1742167100274,0.96419713,82514.0,82513.0,4e-07]
[1742167100477,0.96719713,82514.0,82513.0,4e-07]
[1742167101214,0.98619802,82514.0,82513.0,4e-07]
[1742167102649,0.97165717,82514.0,82513.0,4e-07]
[1742167102968,0.02517009,82514.0,82513.0,0.0764004]
[1742167103176,0.03728909,82514.0,82513.0,0.13256434]
[1742167103380,0.33728909,82514.0,82513.0,0.13256434]
[1742167103796,0.03728909,82514.0,82513.0,0.13256434]
[1742167104028,0.33728909,82514.0,82513.0,0.13256434]
[1742167104963,0.33428909,82514.0,82513.0,0.13256434]
[1742167105145,0.33128909,82514.0,82513.0,0.13256434]
[1742167105487,0.33228909,82514.0,82513.0,0.1225004]
[1742167105902,0.33128909,82514.0,82513.0,0.1225004]
[1742167108141,0.33128909,82514.0,82513.0,0.0764004]
[1742167108356,0.33128909,82514.0,82513.0,4e-07]
[1742167110329,0.0001692,82514.0,82513.0,4e-07]
[1742167110527,0.0001692,82514.0,82513.0,0.20462234]